fUST/lending_fUST_20250806
["ID","MTS","AMOUNT","RATE_DAILY","PERIOD"]
[377481690,1754424639514,-500.0,0.00027673,5]
[377481691,1754424639523,-15075.1252295,0.00027935,2]
[377481692,1754424639532,-460.0,0.00027945,2]
[377481693,1754424639541,-460.0,0.00027945,2]
[377481694,1754424639550,-460.0,0.00027945,2]
[377481695,1754424639559,-460.0,0.00027945,2]
[377481696,1754424639568,-460.0,0.00027945,2]
[377481697,1754424639578,-266.11003166,0.00027945,2]
[377481698,1754424639587,-460.0,0.00027945,2]
[377481699,1754424639599,-460.0,0.00027945,2]
[377481700,1754424639609,-460.0,0.00027945,2]
[377481701,1754424639619,-460.0,0.00027945,2]
[377481702,1754424639630,-2017.23,0.00027945,2]
[377481703,1754424639640,-460.0,0.00027945,2]
[377481705,1754424639649,-1993.53,0.00027945,2]
[377481706,1754424639783,-460.0,0.00027945,2]
[377481707,1754424639794,-460.0,0.00027945,2]
[377481709,1754424639803,-460.0,0.00027945,2]
[377481710,1754424639813,-460.0,0.00027945,2]
[377481711,1754424639822,-1586.98,0.00027945,2]
[377481712,1754424639832,-460.0,0.00027945,2]
[377481713,1754424639842,-460.0,0.00027945,2]
[377481714,1754424639851,-460.0,0.00027945,2]
[377481715,1754424639860,-460.0,0.00027945,2]
[377481716,1754424639870,-460.0,0.00027945,2]
[377481717,1754424639880,-460.0,0.00027945,2]
[377481718,1754424639889,-460.0,0.00027945,2]
[377481719,1754424639899,-460.0,0.00027945,2]
[377481721,1754424639908,-625.18,0.00027945,2]
[377481723,1754424639920,-460.0,0.00027945,2]
[377481725,1754424639930,-381.73914867,0.00027945,2]
[377481727,1754424639939,-460.0,0.00027945,2]
[377481728,1754424639949,-460.0,0.00027945,2]
[377481729,1754424639959,-21374.24,0.00027945,2]
[377481730,1754424639968,-460.0,0.00027945,2]
[377481731,1754424639978,-460.0,0.00027945,2]
[377481732,1754424639987,-460.0,0.00027945,2]
[377481733,1754424639997,-936.36,0.00027945,2]
[377481734,1754424640006,-726.59,0.00027945,2]
[377481735,1754424640015,-460.0,0.00027945,2]
[377481736,1754424640024,-460.0,0.00027945,2]
[377481737,1754424640034,-460.0,0.00027945,2]
[377481738,1754424640043,-460.0,0.00027945,2]
[377481739,1754424640052,-719.63,0.00027945,2]
[377481740,1754424640061,-460.0,0.00027945,2]
[377481741,1754424640070,-460.0,0.00027945,2]
[377481742,1754424640079,-685.95,0.00027945,2]
[377481743,1754424640089,-460.0,0.00027945,2]
[377481744,1754424640098,-460.0,0.00027945,2]
[377481745,1754424640107,-460.0,0.00027945,2]
[377481746,1754424640116,-460.0,0.00027945,2]
[377481747,1754424640125,-460.0,0.00027945,2]
[377481748,1754424640134,-500.0,0.00027973,5]
[377481749,1754424640144,-1680.0,0.00027986,2]
[377481750,1754424640153,-312.16666667,0.00028,3]
[377481751,1754424640162,-160.0,0.00028,3]
[377481752,1754424640171,-5016.01994328,0.00028003,8]
[377481753,1754424640181,-425.983863,0.00028166,2]
[377481754,1754424640190,-15075.1252295,0.00028209,2]
[377481755,1754424640199,-460.0,0.00028219,2]
[377481756,1754424640209,-460.0,0.00028219,2]
[377481757,1754424640219,-460.0,0.00028219,2]
[377481758,1754424640229,-460.0,0.00028219,2]
[377481759,1754424640239,-460.0,0.00028219,2]
[377481760,1754424640247,-460.0,0.00028219,2]
[377481761,1754424640257,-460.0,0.00028219,2]
[377481762,1754424640266,-460.0,0.00028219,2]
[377481763,1754424640275,-2017.23,0.00028219,2]
[377481764,1754424640284,-340.30377256,0.00028219,2]
[377481765,1754424640293,-1993.53,0.00028219,2]
[377481766,1754424640302,-460.0,0.00028219,2]
[377481767,1754424640311,-460.0,0.00028219,2]
[377481768,1754424640320,-460.0,0.00028219,2]
[377481769,1754424640329,-460.0,0.00028219,2]
[377481770,1754424640338,-1586.98,0.00028219,2]
[377481771,1754424640347,-460.0,0.00028219,2]
[377481772,1754424640356,-331.22535,0.00028219,2]
[377481773,1754424640366,-460.0,0.00028219,2]
[377481774,1754424640375,-460.0,0.00028219,2]
[377481775,1754424640385,-460.0,0.00028219,2]
[377481776,1754424640394,-460.0,0.00028219,2]
[377481777,1754424640404,-460.0,0.00028219,2]
[377481778,1754424640414,-460.0,0.00028219,2]
[377481779,1754424640423,-625.18,0.00028219,2]
[377481780,1754424640433,-460.0,0.00028219,2]
[377481781,1754424640442,-460.0,0.00028219,2]
[377481782,1754424640452,-460.0,0.00028219,2]
[377481783,1754424640461,-21374.24,0.00028219,2]
[377481784,1754424640470,-460.0,0.00028219,2]
[377481785,1754424640479,-460.0,0.00028219,2]
[377481786,1754424640489,-460.0,0.00028219,2]
[377481787,1754424640499,-936.36,0.00028219,2]
[377481788,1754424640508,-726.59,0.00028219,2]
[377481789,1754424640517,-460.0,0.00028219,2]
[377481790,1754424640527,-460.0,0.00028219,2]
[377481791,1754424640536,-460.0,0.00028219,2]
[377481792,1754424640545,-460.0,0.00028219,2]
[377481793,1754424640554,-719.63,0.00028219,2]
[377481794,1754424640562,-460.0,0.00028219,2]
[377481795,1754424640572,-460.0,0.00028219,2]
[377481796,1754424640581,-685.95,0.00028219,2]
[377481797,1754424640591,-460.0,0.00028219,2]
[377481798,1754424640600,-460.0,0.00028219,2]
[377481799,1754424640610,-460.0,0.00028219,2]
[377481800,1754424640619,-460.0,0.00028219,2]
[377481801,1754424640628,-460.0,0.00028219,2]
[377481802,1754424640637,-200.0,0.00028316,15]
[377481803,1754424640646,-300.0,0.00028316,15]
[377481804,1754424640655,-160.0,0.00028369,2]
[377481805,1754424640664,-15075.1252295,0.00028483,2]
[377481806,1754424640674,-460.0,0.00028493,2]
[377481807,1754424640683,-460.0,0.00028493,2]
[377481808,1754424640694,-460.0,0.00028493,2]
[377481809,1754424640704,-460.0,0.00028493,2]
[377481810,1754424640713,-460.0,0.00028493,2]
[377481811,1754424640724,-460.0,0.00028493,2]
[377481812,1754424640734,-460.0,0.00028493,2]
[377481813,1754424640744,-460.0,0.00028493,2]
[377481814,1754424640754,-2017.23,0.00028493,2]
[377481815,1754424640763,-1993.53,0.00028493,2]
[377481816,1754424640776,-460.0,0.00028493,2]
[377481817,1754424640786,-460.0,0.00028493,2]
[377481818,1754424640796,-460.0,0.00028493,2]
[377481819,1754424640806,-460.0,0.00028493,2]
[377481820,1754424640816,-1586.98,0.00028493,2]
[377481821,1754424640826,-460.0,0.00028493,2]
[377481822,1754424640835,-460.0,0.00028493,2]
[377481823,1754424640844,-460.0,0.00028493,2]
[377481824,1754424640854,-460.0,0.00028493,2]
[377481825,1754424640864,-204.21852066,0.00028493,2]
[377481826,1754424640873,-460.0,0.00028493,2]
[377481827,1754424640883,-460.0,0.00028493,2]
[377481828,1754424640892,-625.18,0.00028493,2]
[377481829,1754424640902,-460.0,0.00028493,2]
[377481830,1754424640911,-460.0,0.00028493,2]
[377481831,1754424640920,-460.0,0.00028493,2]
[377481832,1754424640929,-460.0,0.00028493,2]
[377481833,1754424640938,-21374.24,0.00028493,2]
[377481834,1754424640947,-460.0,0.00028493,2]
[377481835,1754424640957,-460.0,0.00028493,2]
[377481836,1754424640966,-936.36,0.00028493,2]
[377481837,1754424640978,-726.59,0.00028493,2]
[377481838,1754424640987,-460.0,0.00028493,2]
[377481839,1754424640997,-460.0,0.00028493,2]
[377481840,1754424641006,-460.0,0.00028493,2]
[377481841,1754424641015,-460.0,0.00028493,2]
[377481842,1754424641025,-719.63,0.00028493,2]
[377481843,1754424641034,-460.0,0.00028493,2]
[377481844,1754424641044,-460.0,0.00028493,2]
[377481845,1754424641053,-685.95,0.00028493,2]
[377481846,1754424641062,-460.0,0.00028493,2]
[377481847,1754424641070,-460.0,0.00028493,2]
[377481848,1754424641079,-460.0,0.00028493,2]
[377481849,1754424641090,-460.0,0.00028493,2]
[377481850,1754424641099,-460.0,0.00028493,2]
[377481851,1754424641109,-1000.0,0.00028521,5]
[377481852,1754424641118,-151.81,0.00028551,15]
[377481853,1754424641127,-151.81,0.00028551,15]
[377481854,1754424641137,-406.587521,0.00028552,2]
[377481855,1754424641146,-152.57,0.00028554,15]
[377481856,1754424641155,-150.92,0.00028567,15]
[377481857,1754424641164,-151.81,0.00028651,15]
[377481858,1754424641173,-151.81,0.00028651,15]
[377481859,1754424641183,-152.57,0.00028654,15]
[377481860,1754424641192,-4025.26974577,0.00028662,2]
[377481861,1754424641201,-150.92,0.00028667,15]
[377481862,1754424641210,-151.81,0.00028751,15]
[377481863,1754424641220,-152.57,0.00028754,15]
[377481864,1754424641229,-150.92,0.00028767,15]
[377481865,1754424641238,-460.0,0.00028767,2]
[377481866,1754424641248,-260.73283226,0.00028767,2]
[377481867,1754424641257,-460.0,0.00028767,2]
[377481868,1754424641266,-460.0,0.00028767,2]
[377481869,1754424641276,-460.0,0.00028767,2]
[377481870,1754424641285,-460.0,0.00028767,2]
[377481871,1754424641295,-460.0,0.00028767,2]
[377481872,1754424641304,-460.0,0.00028767,2]
[377481873,1754424641313,-2017.23,0.00028767,2]
[377481874,1754424641322,-1993.53,0.00028767,2]
[377481875,1754424641331,-460.0,0.00028767,2]
[377481876,1754424641341,-460.0,0.00028767,2]
[377481877,1754424641350,-460.0,0.00028767,2]
[377481878,1754424641360,-460.0,0.00028767,2]
[377481879,1754424641369,-1586.98,0.00028767,2]
[377481880,1754424641378,-460.0,0.00028767,2]
[377481881,1754424641388,-460.0,0.00028767,2]
[377481882,1754424641397,-460.0,0.00028767,2]
[377481883,1754424641406,-460.0,0.00028767,2]
[377481884,1754424641415,-460.0,0.00028767,2]
[377481885,1754424641424,-625.18,0.00028767,2]
[377481886,1754424641433,-460.0,0.00028767,2]
[377481887,1754424641443,-460.0,0.00028767,2]
[377481888,1754424641452,-460.0,0.00028767,2]
[377481889,1754424641461,-460.0,0.00028767,2]
[377481890,1754424641471,-460.0,0.00028767,2]
[377481891,1754424641481,-21374.24,0.00028767,2]
[377481892,1754424641490,-460.0,0.00028767,2]
[377481893,1754424641502,-460.0,0.00028767,2]
[377481894,1754424641511,-936.36,0.00028767,2]
[377481896,1754424641520,-726.59,0.00028767,2]
[377481897,1754424641529,-460.0,0.00028767,2]
[377481898,1754424641538,-460.0,0.00028767,2]
[377481899,1754424641547,-460.0,0.00028767,2]
[377481900,1754424641555,-460.0,0.00028767,2]
[377481901,1754424641564,-719.63,0.00028767,2]
[377481902,1754424641573,-460.0,0.00028767,2]
[377481903,1754424641582,-460.0,0.00028767,2]
[377481904,1754424641591,-685.95,0.00028767,2]
[377481905,1754424641600,-460.0,0.00028767,2]
[377481906,1754424641609,-460.0,0.00028767,2]
[377481907,1754424641618,-460.0,0.00028767,2]
[377481908,1754424641627,-460.0,0.00028767,2]
[377481909,1754424641636,-460.0,0.00028767,2]
[377481910,1754424641645,-151.81,0.00028851,15]
[377481911,1754424641654,-152.57,0.00028854,15]
[377481912,1754424641662,-150.92,0.00028867,15]
[377481913,1754424641671,-151.0,0.00028913,2]
[377481914,1754424641680,-260.0,0.00028917,2]
[377481915,1754424641690,-151.81,0.00028951,15]
[377481916,1754424641704,-152.6,0.00028954,15]
[377481917,1754424641713,-150.92,0.00028967,15]
[377481918,1754424641723,-5016.01994328,0.00029038,11]
[377481919,1754424641733,-460.0,0.00029041,2]
[377481920,1754424641743,-460.0,0.00029041,2]
[377481921,1754424641754,-506.01514132,0.00029041,2]
[377481922,1754424641764,-460.0,0.00029041,2]
[377481923,1754424641773,-460.0,0.00029041,2]
[377481924,1754424641783,-460.0,0.00029041,2]
[377481925,1754424641792,-2017.23,0.00029041,2]
[377481926,1754424641801,-1993.53,0.00029041,2]
[377481927,1754424641810,-460.0,0.00029041,2]
[377481928,1754424641819,-460.0,0.00029041,2]
[377481929,1754424641827,-460.0,0.00029041,2]
[377481930,1754424641836,-460.0,0.00029041,2]
[377481931,1754424641845,-1586.98,0.00029041,2]
[377481932,1754424641854,-460.0,0.00029041,2]
[377481933,1754424641863,-460.0,0.00029041,2]
[377481934,1754424641872,-460.0,0.00029041,2]
[377481935,1754424641881,-460.0,0.00029041,2]
[377481936,1754424641890,-460.0,0.00029041,2]
[377481937,1754424641899,-625.18,0.00029041,2]
[377481938,1754424641908,-460.0,0.00029041,2]
[377481939,1754424641917,-460.0,0.00029041,2]
[377481940,1754424641926,-460.0,0.00029041,2]
[377481941,1754424641935,-460.0,0.00029041,2]
[377481942,1754424641944,-460.0,0.00029041,2]
[377481943,1754424641953,-21374.24,0.00029041,2]
[377481944,1754424641961,-460.0,0.00029041,2]
[377481945,1754424641970,-460.0,0.00029041,2]
[377481946,1754424641979,-936.36,0.00029041,2]
[377481947,1754424641988,-726.59,0.00029041,2]
[377481948,1754424641997,-460.0,0.00029041,2]
[377481949,1754424642007,-460.0,0.00029041,2]
[377481950,1754424642016,-460.0,0.00029041,2]
[377481951,1754424642025,-460.0,0.00029041,2]
[377481952,1754424642039,-460.0,0.00029041,2]
[377481953,1754424642050,-460.0,0.00029041,2]
[377481954,1754424642059,-685.95,0.00029041,2]
[377481955,1754424642068,-460.0,0.00029041,2]
[377481956,1754424642078,-719.63,0.00029041,2]
[377481957,1754424642087,-460.0,0.00029041,2]
[377481958,1754424642097,-460.0,0.00029041,2]
[377481959,1754424642106,-460.0,0.00029041,2]
[377481960,1754424642115,-151.81,0.00029051,15]
[377481961,1754424642124,-150.92,0.00029067,15]
[377481962,1754424642133,-151.81,0.00029151,15]
[377481963,1754424642143,-150.92,0.00029167,15]
[377481964,1754424642152,-151.81,0.00029251,15]
[377481965,1754424642161,-150.92,0.00029267,15]
[377481966,1754424642170,-231.72586818,0.00029276,2]
[377481967,1754424642179,-160.0,0.00029283,2]
[377481968,1754424642188,-12655.02535889,0.00029283,2]
[377481969,1754424642197,-160.0,0.00029283,2]
[377481970,1754424642207,-160.0,0.00029283,2]
[377481971,1754424642216,-842.25606042,0.00029283,2]
[377481972,1754424642226,-160.0,0.00029283,2]
[377481973,1754424642236,-160.0,0.00029283,2]
[377481974,1754424642245,-160.0,0.00029283,2]
[377481975,1754424642255,-216.4206905,0.00029283,2]
[377481976,1754424642263,-160.0,0.00029283,2]
[377481977,1754424642273,-160.0,0.00029313,2]
[377481978,1754424642282,-461.15695721,0.00029313,2]
[377481979,1754424642291,-460.0,0.00029315,2]
[377481980,1754424642301,-460.0,0.00029315,2]
[377481981,1754424642310,-460.0,0.00029315,2]
[377481982,1754424642320,-460.0,0.00029315,2]
[377481983,1754424642329,-2017.23,0.00029315,2]
[377481984,1754424642337,-1993.53,0.00029315,2]
[377481985,1754424642346,-460.0,0.00029315,2]
[377481986,1754424642355,-460.0,0.00029315,2]
[377481987,1754424642363,-460.0,0.00029315,2]
[377481988,1754424642373,-243.47936622,0.00029315,2]
[377481989,1754424642382,-1586.98,0.00029315,2]
[377481990,1754424642391,-460.0,0.00029315,2]
[377481991,1754424642400,-460.0,0.00029315,2]
[377481992,1754424642409,-460.0,0.00029315,2]
[377481993,1754424642418,-460.0,0.00029315,2]
[377481994,1754424642427,-460.0,0.00029315,2]
[377481995,1754424642436,-625.18,0.00029315,2]
[377481996,1754424642445,-460.0,0.00029315,2]
[377481997,1754424642455,-460.0,0.00029315,2]
[377481998,1754424642464,-460.0,0.00029315,2]
[377481999,1754424642474,-460.0,0.00029315,2]
[377482000,1754424642483,-460.0,0.00029315,2]
[377482001,1754424642594,-21374.24,0.00029315,2]
[377482002,1754424642604,-460.0,0.00029315,2]
[377482003,1754424642614,-460.0,0.00029315,2]
[377482004,1754424642624,-936.36,0.00029315,2]
[377482006,1754424642633,-726.59,0.00029315,2]
[377482007,1754424642643,-460.0,0.00029315,2]
[377482008,1754424642651,-460.0,0.00029315,2]
[377482009,1754424642660,-460.0,0.00029315,2]
[377482010,1754424642669,-460.0,0.00029315,2]
[377482011,1754424642678,-460.0,0.00029315,2]
[377482012,1754424642687,-685.95,0.00029315,2]
[377482013,1754424642700,-460.0,0.00029315,2]
[377482014,1754424642709,-460.0,0.00029315,2]
[377482015,1754424642718,-719.63,0.00029315,2]
[377482016,1754424642728,-460.0,0.00029315,2]
[377482017,1754424642738,-460.0,0.00029315,2]
[377482018,1754424642748,-460.0,0.00029315,2]
[377482019,1754424642757,-151.81,0.00029351,15]
[377482020,1754424642767,-150.95777179,0.00029367,15]
[377482022,1754424642783,-151.81,0.00029451,15]
[377482023,1754424642792,-150.0,0.0002946,2]
[377482024,1754424642801,-360.0,0.00029465,2]
[377482025,1754424642810,-460.0,0.00029589,2]
[377482026,1754424642820,-460.0,0.00029589,2]
[377482027,1754424642829,-460.0,0.00029589,2]
[377482028,1754424642838,-460.0,0.00029589,2]
[377482029,1754424642847,-2017.23,0.00029589,2]
[377482030,1754424642857,-1993.53,0.00029589,2]
[377482031,1754424642866,-460.0,0.00029589,2]
[377482032,1754424642875,-493.7,0.00029589,2]
[377482033,1754424642885,-460.0,0.00029589,2]
[377482035,1754424642895,-1586.98,0.00029589,2]
[377482036,1754424642904,-460.0,0.00029589,2]
[377482038,1754424642914,-460.0,0.00029589,2]
[377482040,1754424642924,-460.0,0.00029589,2]
[377482041,1754424642933,-460.0,0.00029589,2]
[377482043,1754424642942,-460.0,0.00029589,2]
[377482044,1754424642951,-625.18,0.00029589,2]
[377482045,1754424642961,-460.0,0.00029589,2]
[377482046,1754424642970,-460.0,0.00029589,2]
[377482048,1754424642979,-460.0,0.00029589,2]
[377482049,1754424642989,-460.0,0.00029589,2]
[377482050,1754424642998,-460.0,0.00029589,2]
[377482051,1754424643007,-21374.24,0.00029589,2]
[377482052,1754424643017,-460.0,0.00029589,2]
[377482053,1754424643026,-460.0,0.00029589,2]
[377482054,1754424643035,-936.36,0.00029589,2]
[377482055,1754424643045,-726.59,0.00029589,2]
[377482056,1754424643054,-460.0,0.00029589,2]
[377482057,1754424643063,-460.0,0.00029589,2]
[377482058,1754424643073,-460.0,0.00029589,2]
[377482059,1754424643082,-460.0,0.00029589,2]
[377482060,1754424643091,-460.0,0.00029589,2]
[377482061,1754424643101,-685.95,0.00029589,2]
[377482062,1754424643110,-172.35,0.00029589,2]
[377482063,1754424643121,-460.0,0.00029589,2]
[377482064,1754424643131,-719.63,0.00029589,2]
[377482065,1754424643140,-460.0,0.00029589,2]
[377482066,1754424643150,-460.0,0.00029589,2]
[377482067,1754424643159,-460.0,0.00029589,2]
[377482068,1754424643169,-250.0,0.00029666,2]
[377482069,1754424643179,-162.11134969,0.00029857,2]
[377482070,1754424643188,-460.0,0.00029863,2]
[377482071,1754424643197,-460.0,0.00029863,2]
[377482072,1754424643206,-460.0,0.00029863,2]
[377482073,1754424643216,-460.0,0.00029863,2]
[377482074,1754424643227,-2017.23,0.00029863,2]
[377482075,1754424643236,-1993.53,0.00029863,2]
[377482076,1754424643245,-460.0,0.00029863,2]
[377482077,1754424643254,-367.25721173,0.00029863,2]
[377482078,1754424643263,-1586.98,0.00029863,2]
[377482079,1754424643273,-460.0,0.00029863,2]
[377482080,1754424643282,-460.0,0.00029863,2]
[377482081,1754424643292,-460.0,0.00029863,2]
[377482082,1754424643301,-166.02700729,0.00029863,2]
[377482083,1754424643311,-460.0,0.00029863,2]
[377482084,1754424643320,-625.18,0.00029863,2]
[377482085,1754424643329,-460.0,0.00029863,2]
[377482086,1754424643338,-460.0,0.00029863,2]
[377482087,1754424643347,-460.0,0.00029863,2]
[377482088,1754424643357,-460.0,0.00029863,2]
[377482089,1754424643367,-168.57,0.00029863,2]
[377482090,1754424643377,-21374.24,0.00029863,2]
[377482091,1754424643386,-460.0,0.00029863,2]
[377482092,1754424643396,-460.0,0.00029863,2]
[377482093,1754424643405,-936.36,0.00029863,2]
[377482094,1754424643414,-726.59,0.00029863,2]
[377482095,1754424643424,-460.0,0.00029863,2]
[377482096,1754424643433,-460.0,0.00029863,2]
[377482097,1754424643442,-460.0,0.00029863,2]
[377482098,1754424643451,-685.95,0.00029863,2]
[377482099,1754424643461,-460.0,0.00029863,2]
[377482100,1754424643470,-719.63,0.00029863,2]
[377482101,1754424643481,-460.0,0.00029863,2]
[377482102,1754424643491,-460.0,0.00029863,2]
[377482103,1754424643500,-460.0,0.00029863,2]
[377482104,1754424643510,-460.0,0.00030013,2]
[377482105,1754424643519,-5016.01994328,0.00030072,13]
[377482106,1754424643529,-460.0,0.00030136,2]
[377482107,1754424643539,-460.0,0.00030136,2]
[377482108,1754424643549,-277.42897087,0.00030136,2]
[377482109,1754424643559,-460.0,0.00030136,2]
[377482110,1754424643568,-2017.23,0.00030136,2]
[377482111,1754424643577,-1993.53,0.00030136,2]
[377482112,1754424643587,-460.0,0.00030136,2]
[377482113,1754424643597,-1586.98,0.00030136,2]
[377482114,1754424643606,-460.0,0.00030136,2]
[377482115,1754424643616,-460.0,0.00030136,2]
[377482116,1754424643625,-607.4,0.00030136,2]
[377482117,1754424643634,-460.0,0.00030136,2]
[377482118,1754424643644,-625.18,0.00030136,2]
[377482119,1754424643653,-460.0,0.00030136,2]
[377482120,1754424643662,-460.0,0.00030136,2]
[377482121,1754424643671,-460.0,0.00030136,2]
[377482122,1754424643680,-21374.24,0.00030136,2]
[377482123,1754424643690,-460.0,0.00030136,2]
[377482124,1754424643703,-460.0,0.00030136,2]
[377482125,1754424643713,-936.36,0.00030136,2]
[377482126,1754424643723,-726.59,0.00030136,2]
[377482127,1754424643734,-173.33,0.00030136,2]
[377482128,1754424643744,-460.0,0.00030136,2]
[377482129,1754424643754,-460.0,0.00030136,2]
[377482130,1754424643764,-685.95,0.00030136,2]
[377482131,1754424643774,-460.0,0.00030136,2]
[377482132,1754424643784,-719.63,0.00030136,2]
[377482133,1754424643793,-460.0,0.00030136,2]
[377482134,1754424643802,-460.0,0.00030136,2]
[377482135,1754424643811,-460.0,0.00030136,2]
[377482137,1754424643821,-151.0,0.00030282,2]
[377482138,1754424643831,-7365.94360047,0.000303,2]
[377482139,1754424643841,-4025.26974577,0.000303,2]
[377482140,1754424643850,-150.0,0.00030373,3]
[377482142,1754424643860,-9842.11469012,0.000304,2]
[377482143,1754424643870,-261433.09389125,0.000304,4]
[377482144,1754424643888,-22099.69610875,0.000304,4]
[377482145,1754424643898,-464722.95,0.000304,4]
[377482146,1754424643907,-1015830.82752981,0.000304,4]
[377482148,1754424643919,-943.23913375,0.000304,4]
[377482149,1754424643931,-534.94906441,0.000304,4]
[377482150,1754424643943,-708.43795877,0.000304,4]
[377482151,1754424643954,-1230.92697951,0.000304,4]
[377482152,1754424643966,-1249.0500665,0.000304,4]
[377482153,1754424643978,-813.62704925,0.000304,4]
[377482154,1754424643991,-229.072218,0.000304,4]
[377482155,1754424644000,-153.182065,0.000304,7]
[377482156,1754424644010,-527.89107,0.000304,7]
[377482157,1754424644020,-527.89107,0.000304,7]
[377482158,1754424644030,-151.0,0.000304,7]
[377482159,1754424644039,-217.37488933,0.000304,7]
[377482160,1754424645714,-239.9,0.00027043,10]
[377482161,1754424645725,-1170.15860614,0.00027842,2]
[377482162,1754424645735,-460.0,0.00029041,2]
[377482163,1754424645745,-460.0,0.00029315,2]
[377482164,1754424645754,-239.0,0.00029589,2]
[377482165,1754424645763,-190.40899167,0.000304,7]
[377482166,1754424645775,-407.783881,0.000304,7]
[377482167,1754424645786,-800.0,0.000304,2]
[377482168,1754424645795,-341.217454,0.000304,7]
[377482169,1754424645804,-341.217454,0.000304,7]
[377482170,1754424645813,-151.0,0.000304,7]
[377482171,1754424645822,-196.173257,0.000304,7]
[377482172,1754424645832,-196.173257,0.000304,7]
[377482173,1754424645842,-377.086994,0.000304,7]
[377482174,1754424645852,-377.086994,0.000304,7]
[377482175,1754424645861,-151.0,0.000304,7]
[377482176,1754424645871,-151.0,0.000304,7]
[377482177,1754424645880,-151.0,0.000304,7]
[377482178,1754424645889,-460.0,0.0003041,2]
[377482179,1754424645898,-460.0,0.0003041,2]
[377482180,1754424645907,-460.0,0.0003041,2]
[377482181,1754424645917,-2017.23,0.0003041,2]
[377482182,1754424645926,-1993.53,0.0003041,2]
[377482183,1754424645936,-460.0,0.0003041,2]
[377482184,1754424645945,-1586.98,0.0003041,2]
[377482185,1754424645954,-460.0,0.0003041,2]
[377482186,1754424645963,-460.0,0.0003041,2]
[377482187,1754424645973,-256.9191177,0.0003041,2]
[377482197,1754424726330,4546.56619922,0.00025643,2]
[377482198,1754424726361,20000.0,0.00025643,2]
[377482199,1754424726391,20000.0,0.00025643,2]
[377482200,1754424726420,20000.0,0.00025643,2]
[377482201,1754424726448,20000.0,0.00025643,2]
[377482202,1754424726476,20000.0,0.00025643,2]
[377482203,1754424726503,20000.0,0.00025643,2]
[377482204,1754424726526,20000.0,0.00025643,2]
[377482205,1754424726551,20000.0,0.00025643,2]
[377482206,1754424726572,20000.0,0.00025643,2]
[377482207,1754424726596,20000.0,0.00025643,2]
[377482208,1754424726620,20000.0,0.00025643,2]
[377482209,1754424726643,20000.0,0.00025643,2]
[377482210,1754424726666,20000.0,0.00025643,2]
[377482211,1754424726688,20000.0,0.00025643,2]
[377482212,1754424726710,20000.0,0.00025643,2]
[377482213,1754424726737,20000.0,0.00025643,2]
[377482214,1754424726952,20000.0,0.00025643,2]
[377482215,1754424726986,20000.0,0.00025643,2]